fUST/lending_fUST_20250202
["ID","MTS","AMOUNT","RATE_DAILY","PERIOD"]
[351256257,1738486234642,-500.0,0.00016438,2]
[351256258,1738486234652,-555.52,0.00016438,2]
[351256259,1738486234663,-500.0,0.00016438,2]
[351256260,1738486234673,-1184.59,0.00016438,2]
[351256261,1738486234682,-3677.01,0.00016438,2]
[351256262,1738486234692,-1654.48,0.00016438,2]
[351256263,1738486234702,-500.0,0.00016438,2]
[351256264,1738486234712,-500.0,0.00016438,2]
[351256265,1738486234721,-554.82384778,0.00016438,2]
[351256266,1738486234731,-723.95,0.00016438,2]
[351256267,1738486234741,-1000.0,0.00016438,7]
[351256268,1738486234859,-500.0,0.00016438,2]
[351256269,1738486234868,-632.05,0.00016438,2]
[351256270,1738486234879,-500.0,0.00016438,2]
[351256271,1738486234889,-500.0,0.00016438,2]
[351256272,1738486234899,-1751.15,0.00016438,2]
[351256273,1738486234909,-500.0,0.00016438,2]
[351256274,1738486234918,-500.0,0.00016438,2]
[351256275,1738486234927,-2314.98,0.00016438,2]
[351256276,1738486234938,-512.22909058,0.00016438,2]
[351256277,1738486234948,-500.0,0.00016438,2]
[351256278,1738486234959,-500.0,0.00016438,2]
[351256279,1738486234974,-500.0,0.00016438,2]
[351256280,1738486234984,-1392.08,0.00016438,2]
[351256281,1738486234995,-500.0,0.00016438,2]
[351256282,1738486235005,-7269.4,0.00016438,2]
[351256283,1738486235015,-500.0,0.00016438,2]
[351256284,1738486235024,-500.0,0.00016438,2]
[351256285,1738486235035,-500.0,0.00016438,2]
[351256286,1738486235045,-1669.41,0.00016438,2]
[351256287,1738486235054,-500.0,0.00016438,2]
[351256288,1738486235063,-500.0,0.00016438,2]
[351256289,1738486235073,-500.0,0.00016438,2]
[351256290,1738486235083,-2574.09,0.00016438,2]
[351256291,1738486235093,-500.0,0.00016438,2]
[351256292,1738486235102,-500.0,0.00016438,2]
[351256293,1738486235111,-500.0,0.00016438,2]
[351256294,1738486235121,-354.4946044,0.000165,2]
[351256295,1738486235130,-744.52,0.00016574,2]
[351256296,1738486235140,-744.52,0.00016574,2]
[351256297,1738486235149,-744.52,0.00016574,2]
[351256298,1738486235159,-744.52,0.00016574,2]
[351256299,1738486235168,-744.52,0.00016574,2]
[351256300,1738486235177,-500.0,0.00016575,2]
[351256301,1738486235186,-500.0,0.00016575,2]
[351256302,1738486235196,-500.0,0.00016575,2]
[351256303,1738486235206,-500.0,0.00016575,2]
[351256304,1738486235216,-500.0,0.00016575,2]
[351256305,1738486235225,-500.0,0.00016575,2]
[351256306,1738486235235,-500.0,0.00016575,2]
[351256307,1738486235244,-500.0,0.00016575,2]
[351256308,1738486235254,-500.0,0.00016575,2]
[351256309,1738486235264,-500.0,0.00016575,2]
[351256310,1738486235273,-500.0,0.00016575,2]
[351256311,1738486235284,-500.0,0.00016575,2]
[351256312,1738486235294,-368.67574739,0.00016575,2]
[351256313,1738486235303,-500.0,0.00016575,2]
[351256314,1738486235313,-500.0,0.00016575,2]
[351256315,1738486235323,-500.0,0.00016575,2]
[351256316,1738486235334,-500.0,0.00016575,2]
[351256317,1738486235344,-500.0,0.00016575,2]
[351256318,1738486235353,-500.0,0.00016575,2]
[351256319,1738486235365,-500.0,0.00016575,2]
[351256320,1738486235376,-500.0,0.00016575,2]
[351256321,1738486235385,-500.0,0.00016575,2]
[351256322,1738486235395,-500.0,0.00016575,2]
[351256323,1738486235404,-605.25127706,0.00016575,2]
[351256324,1738486235414,-500.0,0.00016575,2]
[351256325,1738486235423,-500.0,0.00016575,2]
[351256326,1738486235433,-500.0,0.00016575,2]
[351256327,1738486235443,-571.33,0.00016575,2]
[351256328,1738486235453,-500.0,0.00016575,2]
[351256329,1738486235462,-400.17,0.00016575,2]
[351256330,1738486235471,-500.0,0.00016575,2]
[351256331,1738486235480,-500.0,0.00016575,2]
[351256332,1738486235490,-500.0,0.00016575,2]
[351256333,1738486235499,-500.0,0.00016575,2]
[351256334,1738486235509,-500.0,0.00016575,2]
[351256335,1738486235520,-500.0,0.00016575,2]
[351256336,1738486235531,-500.0,0.00016575,2]
[351256337,1738486235540,-500.0,0.00016575,2]
[351256338,1738486235550,-500.0,0.00016575,2]
[351256339,1738486235560,-430.38540521,0.00016575,2]
[351256340,1738486235570,-500.0,0.00016575,2]
[351256341,1738486235579,-500.0,0.00016575,2]
[351256342,1738486235588,-500.0,0.00016575,2]
[351256343,1738486235599,-500.0,0.00016575,2]
[351256344,1738486235608,-507.36123817,0.00016575,2]
[351256345,1738486235618,-873.66,0.00016575,2]
[351256346,1738486235628,-500.0,0.00016575,2]
[351256347,1738486235637,-500.0,0.00016575,2]
[351256348,1738486235647,-500.0,0.00016575,2]
[351256349,1738486235656,-18597.15,0.00016575,2]
[351256350,1738486235666,-500.0,0.00016575,2]
[351256351,1738486235676,-500.0,0.00016575,2]
[351256352,1738486235685,-904.05,0.00016575,2]
[351256353,1738486235695,-500.0,0.00016575,2]
[351256354,1738486235704,-500.0,0.00016575,2]
[351256355,1738486235714,-500.0,0.00016575,2]
[351256356,1738486235723,-2395.11,0.00016575,2]
[351256357,1738486235732,-500.0,0.00016575,2]
[351256358,1738486235742,-508.45,0.00016575,2]
[351256359,1738486235751,-500.0,0.00016575,2]
[351256360,1738486235760,-2368.09,0.00016575,2]
[351256361,1738486235770,-897.53,0.00016575,2]
[351256362,1738486235779,-13052.07,0.00016575,2]
[351256363,1738486235788,-884.49,0.00016575,2]
[351256364,1738486235798,-500.0,0.00016575,2]
[351256365,1738486235807,-500.0,0.00016575,2]
[351256366,1738486235816,-500.0,0.00016575,2]
[351256367,1738486235825,-500.0,0.00016575,2]
[351256368,1738486235834,-500.0,0.00016575,2]
[351256369,1738486235843,-500.0,0.00016575,2]
[351256370,1738486235852,-500.0,0.00016575,2]
[351256371,1738486235861,-500.0,0.00016575,2]
[351256372,1738486235873,-714.15,0.00016575,2]
[351256373,1738486235882,-500.0,0.00016575,2]
[351256374,1738486235891,-500.0,0.00016575,2]
[351256375,1738486235900,-500.0,0.00016575,2]
[351256376,1738486235910,-500.0,0.00016575,2]
[351256377,1738486235919,-500.0,0.00016575,2]
[351256378,1738486235928,-555.52,0.00016575,2]
[351256379,1738486235937,-1184.59,0.00016575,2]
[351256380,1738486235946,-3677.01,0.00016575,2]
[351256381,1738486235955,-1654.48,0.00016575,2]
[351256382,1738486235966,-500.0,0.00016575,2]
[351256383,1738486235975,-500.0,0.00016575,2]
[351256384,1738486235983,-723.95,0.00016575,2]
[351256385,1738486235992,-547.67,0.00016575,2]
[351256386,1738486236002,-632.05,0.00016575,2]
[351256387,1738486236011,-500.0,0.00016575,2]
[351256388,1738486236020,-500.0,0.00016575,2]
[351256389,1738486236029,-1751.15,0.00016575,2]
[351256390,1738486236038,-174.98072347,0.00016575,2]
[351256391,1738486236047,-500.0,0.00016575,2]
[351256392,1738486236056,-2314.98,0.00016575,2]
[351256393,1738486236065,-632.87,0.00016575,2]
[351256394,1738486236075,-1392.08,0.00016575,2]
[351256395,1738486236085,-500.0,0.00016575,2]
[351256396,1738486236094,-500.0,0.00016575,2]
[351256397,1738486236103,-7269.4,0.00016575,2]
[351256398,1738486236112,-500.0,0.00016575,2]
[351256399,1738486236121,-500.0,0.00016575,2]
[351256400,1738486236130,-500.0,0.00016575,2]
[351256401,1738486236139,-1669.41,0.00016575,2]
[351256402,1738486236148,-291.70452318,0.00016575,2]
[351256403,1738486236157,-500.0,0.00016575,2]
[351256404,1738486236167,-2574.09,0.00016575,2]
[351256405,1738486236179,-500.0,0.00016575,2]
[351256406,1738486236188,-500.0,0.00016575,2]
[351256407,1738486236197,-500.0,0.00016575,2]
[351256408,1738486236207,-500.0,0.00016575,2]
[351256409,1738486236218,-306.0,0.000166,2]
[351256410,1738486236227,-744.52,0.00016611,2]
[351256411,1738486236237,-744.52,0.00016611,2]
[351256412,1738486236246,-744.52,0.00016611,2]
[351256413,1738486236255,-744.52,0.00016611,2]
[351256414,1738486236264,-744.52,0.00016611,2]
[351256415,1738486236273,-744.74,0.00016611,2]
[351256416,1738486236287,-29721.03272111,0.00016612,2]
[351256417,1738486236297,-420.0,0.0001671,2]
[351256418,1738486236306,-500.0,0.00016712,2]
[351256419,1738486236318,-500.0,0.00016712,2]
[351256420,1738486236328,-500.0,0.00016712,2]
[351256421,1738486236338,-500.0,0.00016712,2]
[351256422,1738486236347,-500.0,0.00016712,2]
[351256423,1738486236360,-500.0,0.00016712,2]
[351256424,1738486236370,-500.0,0.00016712,2]
[351256425,1738486236379,-500.0,0.00016712,2]
[351256426,1738486236389,-500.0,0.00016712,2]
[351256427,1738486236398,-595.3581721,0.00016712,2]
[351256428,1738486236409,-500.0,0.00016712,2]
[351256429,1738486236419,-553.11532538,0.00016712,2]
[351256430,1738486236428,-500.0,0.00016712,2]
[351256431,1738486236437,-500.0,0.00016712,2]
[351256432,1738486236447,-500.0,0.00016712,2]
[351256433,1738486236459,-500.0,0.00016712,2]
[351256434,1738486236473,-500.0,0.00016712,2]
[351256435,1738486236483,-151.0,0.00016712,2]
[351256436,1738486236493,-500.0,0.00016712,2]
[351256437,1738486236502,-500.0,0.00016712,2]
[351256438,1738486236512,-500.0,0.00016712,2]
[351256439,1738486236522,-571.33,0.00016712,2]
[351256440,1738486236531,-151.0,0.00016712,2]
[351256441,1738486236540,-500.0,0.00016712,2]
[351256442,1738486236550,-500.0,0.00016712,2]
[351256443,1738486236559,-500.0,0.00016712,2]
[351256444,1738486236569,-500.0,0.00016712,2]
[351256445,1738486236579,-500.0,0.00016712,2]
[351256446,1738486236589,-151.0,0.00016712,2]
[351256447,1738486236599,-450.114858,0.00016712,2]
[351256448,1738486236609,-500.0,0.00016712,2]
[351256449,1738486236619,-500.0,0.00016712,2]
[351256450,1738486236629,-254.533764,0.00016712,2]
[351256451,1738486236639,-450.114858,0.00016712,2]
[351256452,1738486236649,-500.0,0.00016712,2]
[351256453,1738486236659,-151.0,0.00016712,2]
[351256454,1738486236668,-1057.332892,0.00016712,2]
[351256455,1738486236678,-1057.332892,0.00016712,2]
[351256456,1738486236688,-500.0,0.00016712,2]
[351256457,1738486236698,-500.0,0.00016712,2]
[351256458,1738486236707,-234.936222,0.00016712,2]
[351256459,1738486236717,-500.0,0.00016712,2]
[351256460,1738486236726,-234.936222,0.00016712,2]
[351256461,1738486236736,-151.0,0.00016712,2]
[351256462,1738486236745,-151.0,0.00016712,2]
[351256463,1738486236755,-500.0,0.00016712,2]
[351256464,1738486236764,-500.0,0.00016712,2]
[351256465,1738486236774,-873.66,0.00016712,2]
[351256466,1738486236784,-193.538642,0.00016712,2]
[351256467,1738486236793,-153.484543,0.00016712,2]
[351256468,1738486236891,-193.538642,0.00016712,2]
[351256469,1738486236902,-500.0,0.00016712,2]
[351256470,1738486236911,-500.0,0.00016712,2]
[351256471,1738486236921,-500.0,0.00016712,2]
[351256472,1738486236930,-18597.15,0.00016712,2]
[351256473,1738486236940,-151.0,0.00016712,2]
[351256474,1738486236949,-151.0,0.00016712,2]
[351256475,1738486236959,-151.0,0.00016712,2]
[351256476,1738486236969,-500.0,0.00016712,2]
[351256477,1738486236978,-500.0,0.00016712,2]
[351256478,1738486236988,-904.05,0.00016712,2]
[351256479,1738486236998,-500.0,0.00016712,2]
[351256480,1738486237008,-500.0,0.00016712,2]
[351256481,1738486237018,-2395.11,0.00016712,2]
[351256482,1738486237028,-500.0,0.00016712,2]
[351256483,1738486237037,-151.0,0.00016712,2]
[351256484,1738486237047,-508.45,0.00016712,2]
[351256485,1738486237056,-500.0,0.00016712,2]
[351256486,1738486237065,-2368.09,0.00016712,2]
[351256487,1738486237075,-897.53,0.00016712,2]
[351256488,1738486237085,-13052.07,0.00016712,2]
[351256489,1738486237095,-884.49,0.00016712,2]
[351256490,1738486237105,-500.0,0.00016712,2]
[351256491,1738486237115,-500.0,0.00016712,2]
[351256492,1738486237125,-500.0,0.00016712,2]
[351256493,1738486237134,-500.0,0.00016712,2]
[351256494,1738486237144,-500.0,0.00016712,2]
[351256495,1738486237154,-218.69947285,0.00016712,2]
[351256496,1738486237163,-500.0,0.00016712,2]
[351256497,1738486237172,-500.0,0.00016712,2]
[351256498,1738486237182,-714.15,0.00016712,2]
[351256499,1738486237191,-500.0,0.00016712,2]
[351256500,1738486237200,-500.0,0.00016712,2]
[351256501,1738486237210,-331.882712,0.00016712,2]
[351256502,1738486237221,-331.882712,0.00016712,2]
[351256503,1738486237230,-151.0,0.00016712,2]
[351256504,1738486237240,-498.30517076,0.00016712,2]
[351256505,1738486237249,-500.0,0.00016712,2]
[351256506,1738486237259,-555.52,0.00016712,2]
[351256507,1738486237269,-1184.59,0.00016712,2]
[351256508,1738486237283,-3677.01,0.00016712,2]
[351256509,1738486237293,-1654.48,0.00016712,2]
[351256510,1738486237303,-500.0,0.00016712,2]
[351256511,1738486237313,-500.0,0.00016712,2]
[351256512,1738486237324,-723.95,0.00016712,2]
[351256513,1738486237334,-632.05,0.00016712,2]
[351256514,1738486237344,-500.0,0.00016712,2]
[351256515,1738486237354,-151.878997,0.00016712,2]
[351256516,1738486237365,-500.0,0.00016712,2]
[351256517,1738486237375,-1751.15,0.00016712,2]
[351256518,1738486237385,-500.0,0.00016712,2]
[351256519,1738486237394,-2314.98,0.00016712,2]
[351256520,1738486237404,-151.0,0.00016712,2]
[351256521,1738486237413,-151.0,0.00016712,2]
[351256522,1738486237422,-1392.08,0.00016712,2]
[351256523,1738486237432,-500.0,0.00016712,2]
[351256524,1738486237441,-310.85796419,0.00016712,2]
[351256525,1738486237451,-7269.4,0.00016712,2]
[351256526,1738486237460,-500.0,0.00016712,2]
[351256527,1738486237470,-500.0,0.00016712,2]
[351256528,1738486237479,-500.0,0.00016712,2]
[351256529,1738486237488,-1669.41,0.00016712,2]
[351256530,1738486237498,-2574.09,0.00016712,2]
[351256531,1738486237508,-500.0,0.00016712,2]
[351256532,1738486237518,-500.0,0.00016712,2]
[351256533,1738486237528,-287.017451,0.00016712,2]
[351256534,1738486237537,-151.0,0.00016712,2]
[351256535,1738486237547,-500.0,0.00016712,2]
[351256536,1738486237556,-500.0,0.00016712,2]
[351256537,1738486237566,-158.6068763,0.00016749,2]
[351256538,1738486237576,-5000.0,0.000168,2]
[351256539,1738486237586,-16000.0,0.000168,2]
[351256540,1738486237596,-745.92489216,0.000168,2]
[351256541,1738486237605,-10080.62,0.000168,2]
[351256542,1738486237615,-10641.16,0.000168,2]
[351256543,1738486237625,-151.0,0.000168,2]
[351256544,1738486237634,-151.0,0.000168,2]
[351256545,1738486237644,-151.0,0.00016849,2]
[351256546,1738486237653,-151.0,0.00016849,2]
[351256547,1738486237663,-151.0,0.00016849,2]
[351256548,1738486237672,-500.0,0.00016849,2]
[351256549,1738486237681,-551.08158017,0.00016849,2]
[351256550,1738486237691,-151.0,0.00016849,2]
[351256551,1738486237700,-500.0,0.00016849,2]
[351256552,1738486237709,-167.889512,0.00016849,2]
[351256553,1738486237719,-500.0,0.00016849,2]
[351256554,1738486237728,-151.0,0.00016849,2]
[351256555,1738486237738,-500.0,0.00016849,2]
[351256556,1738486237747,-639.66,0.00016849,2]
[351256557,1738486237756,-500.0,0.00016849,2]
[351256558,1738486237765,-151.0,0.00016849,2]
[351256559,1738486237775,-500.0,0.00016849,2]
[351256560,1738486237784,-151.0,0.00016849,2]
[351256561,1738486237793,-151.0,0.00016849,2]
[351256562,1738486237803,-291.425019,0.00016849,2]
[351256563,1738486237813,-151.0,0.00016849,2]
[351256564,1738486237822,-151.0,0.00016849,2]
[351256565,1738486237831,-151.0,0.00016849,2]
[351256566,1738486237841,-301.693565,0.00016849,2]
[351256567,1738486237850,-500.0,0.00016849,2]
[351256568,1738486237860,-500.0,0.00016849,2]
[351256569,1738486237869,-441.04,0.00016849,2]
[351256570,1738486237880,-500.0,0.00016849,2]
[351256571,1738486237889,-500.0,0.00016849,2]
[351256572,1738486237899,-500.0,0.00016849,2]
[351256573,1738486237909,-153.392887,0.00016849,2]
[351256574,1738486237919,-500.0,0.00016849,2]
[351256575,1738486237928,-500.0,0.00016849,2]
[351256576,1738486237937,-500.0,0.00016849,2]
[351256577,1738486237947,-571.33,0.00016849,2]
[351256578,1738486237956,-153.087999,0.00016849,2]
[351256579,1738486237967,-500.0,0.00016849,2]
[351256580,1738486237977,-500.0,0.00016849,2]
[351256581,1738486237986,-500.0,0.00016849,2]
[351256582,1738486237995,-500.0,0.00016849,2]
[351256583,1738486238005,-500.0,0.00016849,2]
[351256584,1738486238014,-151.0,0.00016849,2]
[351256585,1738486238023,-450.114858,0.00016849,2]
[351256586,1738486238035,-500.0,0.00016849,2]
[351256587,1738486238045,-392.50530235,0.00016849,2]
[351256588,1738486238054,-450.114858,0.00016849,2]
[351256589,1738486238064,-500.0,0.00016849,2]
[351256590,1738486238074,-151.0,0.00016849,2]
[351256591,1738486238084,-1057.332892,0.00016849,2]
[351256592,1738486238094,-1057.332892,0.00016849,2]
[351256594,1738486238103,-500.0,0.00016849,2]
[351256595,1738486238112,-500.0,0.00016849,2]
[351256596,1738486238121,-234.936222,0.00016849,2]
[351256597,1738486238131,-500.0,0.00016849,2]
[351256598,1738486238140,-234.936222,0.00016849,2]
[351256599,1738486238149,-151.0,0.00016849,2]
[351256601,1738486238159,-151.0,0.00016849,2]
[351256602,1738486238168,-500.0,0.00016849,2]
[351256603,1738486238177,-500.0,0.00016849,2]
[351256604,1738486238187,-873.66,0.00016849,2]
[351256605,1738486238197,-193.538642,0.00016849,2]
[351256606,1738486238206,-193.538642,0.00016849,2]
[351256607,1738486238215,-500.0,0.00016849,2]
[351256608,1738486238224,-500.0,0.00016849,2]
[351256609,1738486238234,-500.0,0.00016849,2]
[351256610,1738486238243,-18597.15,0.00016849,2]
[351256611,1738486238253,-151.0,0.00016849,2]
[351256612,1738486238263,-151.0,0.00016849,2]
[351256613,1738486238274,-151.0,0.00016849,2]
[351256614,1738486238287,-500.0,0.00016849,2]
[351256615,1738486238296,-500.0,0.00016849,2]
[351256616,1738486238306,-904.05,0.00016849,2]
[351256617,1738486238315,-500.0,0.00016849,2]
[351256618,1738486238326,-500.0,0.00016849,2]
[351256619,1738486238335,-2395.11,0.00016849,2]
[351256620,1738486238346,-500.0,0.00016849,2]
[351256621,1738486238356,-151.0,0.00016849,2]
[351256623,1738486238366,-508.45,0.00016849,2]
[351256624,1738486238375,-176.4,0.00016849,2]
[351256625,1738486238386,-2368.09,0.00016849,2]
[351256626,1738486238395,-897.53,0.00016849,2]
[351256627,1738486238405,-13052.07,0.00016849,2]
[351256628,1738486238414,-884.49,0.00016849,2]
[351256630,1738486238423,-353.52,0.00016849,2]
[351256632,1738486238432,-500.0,0.00016849,2]
[351256634,1738486238441,-500.0,0.00016849,2]
[351256636,1738486238450,-500.0,0.00016849,2]
[351256638,1738486238460,-500.0,0.00016849,2]
[351256639,1738486238470,-500.0,0.00016849,2]
[351256641,1738486238479,-714.15,0.00016849,2]
[351256643,1738486238489,-500.0,0.00016849,2]
[351256645,1738486238499,-500.0,0.00016849,2]
[351256647,1738486238508,-331.882712,0.00016849,2]
[351256649,1738486238518,-331.882712,0.00016849,2]
[351256652,1738486238528,-151.0,0.00016849,2]
[351256653,1738486238537,-500.0,0.00016849,2]
[351256655,1738486238546,-555.52,0.00016849,2]
[351256658,1738486238556,-1184.59,0.00016849,2]
[351256660,1738486238565,-3677.01,0.00016849,2]
[351256662,1738486238574,-1654.48,0.00016849,2]
[351256664,1738486238584,-500.0,0.00016849,2]
[351256666,1738486238594,-500.0,0.00016849,2]
[351256668,1738486238603,-723.95,0.00016849,2]
[351256670,1738486238613,-500.0,0.00016849,2]
[351256672,1738486238622,-632.05,0.00016849,2]
[351256674,1738486238632,-500.0,0.00016849,2]
[351256675,1738486238642,-1751.15,0.00016849,2]
[351256676,1738486238651,-500.0,0.00016849,2]
[351256677,1738486238661,-2314.98,0.00016849,2]
[351256680,1738486238671,-151.0,0.00016849,2]
[351256681,1738486238756,-151.0,0.00016849,2]
[351256682,1738486238766,-1392.08,0.00016849,2]
[351256683,1738486238775,-500.0,0.00016849,2]
[351256684,1738486238784,-7269.4,0.00016849,2]
[351256685,1738486238794,-500.0,0.00016849,2]
[351256686,1738486238804,-500.0,0.00016849,2]
[351256687,1738486238813,-500.0,0.00016849,2]
[351256688,1738486238823,-1669.41,0.00016849,2]
[351256689,1738486238833,-2574.09,0.00016849,2]
[351256690,1738486238842,-500.0,0.00016849,2]
[351256691,1738486238851,-566.11,0.00016849,2]
[351256693,1738486238861,-2138.78531086,0.00016886,2]
[351256694,1738486238870,-485.96801807,0.000169,2]
[351256695,1738486238879,-602.59385321,0.00016907,2]
[351256696,1738486238889,-485.96801797,0.00016934,2]
[351256697,1738486238898,-526.8153643,0.00016951,2]
[351256698,1738486238907,-485.96801797,0.00016969,2]
[351256699,1738486238917,-510.16,0.00016986,2]
[351256700,1738486238927,-151.0,0.00016986,2]
[351256701,1738486238936,-500.0,0.00016986,2]
[351256702,1738486238946,-500.0,0.00016986,2]
[351256703,1738486238955,-151.0,0.00016986,2]
[351256704,1738486238964,-566.83922036,0.00016986,2]
[351256705,1738486238975,-500.0,0.00016986,2]
[351256706,1738486238985,-151.0,0.00016986,2]
[351256707,1738486238994,-500.0,0.00016986,2]
[351256708,1738486239004,-164.436733,0.00016986,2]
[351256709,1738486239013,-151.0,0.00016986,2]
[351256710,1738486239022,-151.0,0.00016986,2]
[351256711,1738486239031,-151.0,0.00016986,2]
[351256712,1738486239041,-301.693565,0.00016986,2]
[351256713,1738486239050,-301.693565,0.00016986,2]
[351256714,1738486239060,-500.0,0.00016986,2]
[351256715,1738486239069,-500.0,0.00016986,2]
[351256716,1738486239079,-500.0,0.00016986,2]
[351256717,1738486239089,-500.0,0.00016986,2]
[351256718,1738486239099,-500.0,0.00016986,2]
[351256719,1738486239108,-500.0,0.00016986,2]
[351256720,1738486239118,-500.0,0.00016986,2]
[351256721,1738486239129,-500.0,0.00016986,2]
[351256722,1738486239138,-571.33,0.00016986,2]
[351256723,1738486239147,-500.0,0.00016986,2]
[351256724,1738486239157,-500.0,0.00016986,2]
[351256725,1738486239167,-500.0,0.00016986,2]
[351256726,1738486239176,-500.0,0.00016986,2]
[351256727,1738486239185,-545.80864883,0.00016986,2]
[351256728,1738486239196,-151.0,0.00016986,2]
[351256729,1738486239206,-450.114858,0.00016986,2]
[351256730,1738486239216,-500.0,0.00016986,2]
[351256731,1738486239226,-450.114858,0.00016986,2]
[351256732,1738486239235,-330.04514413,0.00016986,2]
[351256733,1738486239245,-167.416422,0.00016986,2]
[351256734,1738486239255,-500.0,0.00016986,2]
[351256735,1738486239264,-345.06530119,0.00016986,2]
[351256736,1738486239274,-234.936222,0.00016986,2]
[351256737,1738486239286,-500.0,0.00016986,2]
[351256738,1738486239295,-234.936222,0.00016986,2]
[351256739,1738486239304,-151.0,0.00016986,2]
[351256740,1738486239314,-500.0,0.00016986,2]
[351256741,1738486239324,-500.0,0.00016986,2]
[351256742,1738486239333,-873.66,0.00016986,2]
[351256743,1738486239342,-500.0,0.00016986,2]
[351256744,1738486239352,-500.0,0.00016986,2]
[351256745,1738486239362,-554.64,0.00016986,2]
[351256746,1738486239372,-18597.15,0.00016986,2]
[351256747,1738486239382,-151.0,0.00016986,2]
[351256748,1738486239391,-151.0,0.00016986,2]
[351256749,1738486239400,-151.0,0.00016986,2]
[351256750,1738486239409,-152.44,0.00016986,2]
[351256751,1738486239418,-500.0,0.00016986,2]
[351256752,1738486239428,-904.05,0.00016986,2]
[351256753,1738486239437,-500.0,0.00016986,2]
[351256754,1738486239447,-500.0,0.00016986,2]
[351256755,1738486239456,-2395.11,0.00016986,2]
[351256756,1738486239464,-500.0,0.00016986,2]
[351256757,1738486239474,-508.45,0.00016986,2]
[351256758,1738486239482,-151.0,0.00016986,2]
[351256759,1738486239491,-2368.09,0.00016986,2]
[351256760,1738486239500,-897.53,0.00016986,2]
[351256761,1738486239509,-13052.07,0.00016986,2]
[351256762,1738486239518,-884.49,0.00016986,2]
[351256763,1738486239527,-500.0,0.00016986,2]
[351256764,1738486239536,-500.0,0.00016986,2]
[351256765,1738486239545,-500.0,0.00016986,2]
[351256766,1738486239554,-500.0,0.00016986,2]
[351256767,1738486239563,-500.0,0.00016986,2]
[351256768,1738486239572,-714.15,0.00016986,2]
[351256769,1738486239581,-500.0,0.00016986,2]
[351256770,1738486239590,-500.0,0.00016986,2]
[351256771,1738486239599,-331.882712,0.00016986,2]
[351256772,1738486239608,-331.882712,0.00016986,2]
[351256773,1738486239618,-500.0,0.00016986,2]
[351256774,1738486239628,-555.52,0.00016986,2]
[351256775,1738486239637,-1184.59,0.00016986,2]
[351256776,1738486239647,-3677.01,0.00016986,2]
[351256777,1738486239656,-1654.48,0.00016986,2]
[351256778,1738486239666,-500.0,0.00016986,2]
[351256779,1738486239676,-500.0,0.00016986,2]
[351256780,1738486239685,-723.95,0.00016986,2]
[351256781,1738486239695,-500.0,0.00016986,2]
[351256782,1738486239704,-632.05,0.00016986,2]
[351256783,1738486239713,-500.0,0.00016986,2]
[351256784,1738486239724,-1751.15,0.00016986,2]
[351256785,1738486239733,-500.0,0.00016986,2]